bitfinex/quotes_BTCUSD_20260215
["timestamp","ask_amount","ask_price","bid_price","bid_amount"]
[1771151037815,0.02419612,70447.0,70442.0,0.07097949]
[1771151038037,0.09517167,70447.0,70440.0,0.0709808]
[1771151038246,0.07097773,70445.0,70439.0,0.07098261]
[1771151038683,0.2739185,70448.0,70441.0,0.07098127]
[1771151038895,0.07097581,70447.0,70441.0,0.07098127]
[1771151039077,0.07097704,70446.0,70440.0,0.07098195]
[1771151039250,0.09517189,70447.0,70442.0,0.07098026]
[1771151039468,0.07097577,70447.0,70442.0,0.07098026]
[1771151039636,0.07097513,70448.0,70442.0,0.07097995]
[1771151039838,0.07097513,70448.0,70443.0,0.07097923]
[1771151040168,0.07097513,70448.0,70442.0,0.07097995]
[1771151040370,0.07097513,70448.0,70439.0,0.28393316]
[1771151040371,4e-05,70450.0,70445.0,0.07097665]
[1771151040579,4e-05,70450.0,70447.0,0.070975]
[1771151040786,4e-05,70450.0,70445.0,0.0709765]
[1771151040988,4e-05,70450.0,70445.0,0.0956872]
[1771151041347,0.28387812,70453.0,70446.0,0.0247107]
[1771151041523,0.0004,70448.0,70440.0,0.0002]
[1771151041743,0.07097821,70445.0,70441.0,0.0247107]
[1771151041949,0.07097909,70444.0,70442.0,6e-05]
[1771151042268,0.0004,70448.0,70442.0,6e-05]
[1771151042468,0.07137493,70448.0,70442.0,0.07103998]
[1771151042697,0.07097596,70447.0,70442.0,6e-05]
[1771151043431,0.4257595,70463.0,70444.0,0.07097833]
[1771151043640,0.07097389,70449.0,70443.0,0.07097779]
[1771151043863,0.07097438,70448.0,70442.0,0.0709803]
[1771151044019,0.07097389,70449.0,70444.0,0.07097777]
[1771151044409,0.07097366,70449.0,70444.0,0.07097799]
[1771151044622,0.07097366,70449.0,70442.0,0.07097954]
[1771151044623,0.07097438,70448.0,70442.0,0.07097954]
[1771151044824,0.07097598,70447.0,70441.0,0.09569054]
[1771151045194,0.07097598,70447.0,70441.0,0.07097984]
[1771151046094,0.07097598,70447.0,70442.0,0.07098029]
[1771151046479,0.07097598,70447.0,70442.0,0.09569099]
[1771151046800,0.07097598,70447.0,70442.0,0.07098029]
[1771151047228,0.07097598,70447.0,70441.0,0.07097984]
[1771151047588,0.06597598,70447.0,70442.0,0.07098037]
[1771151048347,0.06597598,70447.0,70442.0,0.07094037]
[1771151049071,0.0709736,70449.0,70444.0,0.07097826]
[1771151049465,0.07103885,70450.0,70444.0,0.07097826]
[1771151049946,0.07103885,70450.0,70445.0,0.0709771]
[1771151049947,6.5e-05,70450.0,70445.0,0.0709771]
[1771151050144,0.07097213,70452.0,70445.0,0.0956878]
[1771151050344,0.07097195,70451.0,70446.0,0.07552729]
[1771151050606,0.0004,70448.0,70446.0,0.02926215]
[1771151050815,0.0004,70448.0,70446.0,0.10023825]
[1771151051016,0.0004,70448.0,70446.0,0.02926215]
[1771151051202,0.0004,70448.0,70446.0,0.10023817]
[1771151051421,0.0004,70448.0,70447.0,0.07097534]
[1771151052632,0.07096758,70455.0,70450.0,0.07097168]
[1771151053136,0.07136805,70456.0,70450.0,0.28388864]
[1771151053137,0.0004,70456.0,70450.0,0.28388864]
[1771151053344,0.0004,70456.0,70455.0,0.07096728]
[1771151054439,0.0004,70456.0,70454.0,0.0955065]
[1771151054852,0.18405119,70452.0,70441.0,0.07118124]
[1771151055159,0.0004,70456.0,70441.0,0.07118124]
[1771151055160,0.07097537,70447.0,70442.0,0.07097979]
[1771151055371,0.0709756,70447.0,70442.0,0.07097979]
[1771151056202,0.0709756,70447.0,70441.0,0.07118124]
[1771151056203,0.07097684,70446.0,70441.0,0.07118124]
[1771151057480,0.0709774,70445.0,70441.0,0.0002]
[1771151057609,0.07097684,70446.0,70442.0,0.0002]
[1771151058023,0.07097746,70445.0,70442.0,0.0002]
[1771151058546,0.07097437,70448.0,70442.0,0.0002]
[1771151058718,0.07097735,70445.0,70442.0,0.0002]
[1771151059154,0.0709769,70447.0,70442.0,0.0002]
[1771151059649,0.07097687,70446.0,70442.0,0.0002]
[1771151061605,0.28389375,70449.0,70442.0,0.0002]
[1771151061606,0.07097882,70444.0,70442.0,0.0002]
[1771151062568,0.07097893,70445.0,70442.0,0.0002]
[1771151063023,0.07097878,70444.0,70442.0,0.0002]
[1771151063630,0.07097893,70445.0,70442.0,0.0002]
[1771151064758,0.07097855,70444.0,70442.0,0.0002]
[1771151065215,0.07097889,70445.0,70442.0,0.0002]
[1771151065729,0.07098038,70442.0,70436.0,0.0002]
[1771151065946,0.07098298,70440.0,70436.0,0.0002]
[1771151066177,0.28391759,70443.0,70436.0,0.0002]
[1771151066178,0.07098208,70442.0,70437.0,0.0709853]
[1771151066872,0.0709813,70443.0,70438.0,0.0709843]
[1771151067101,0.0004,70447.0,70437.0,0.07098541]
[1771151067324,0.0004,70447.0,70441.0,0.28392356]
[1771151067551,0.0004,70447.0,70443.0,0.07097903]
[1771151067777,0.0004,70447.0,70444.0,0.00797444]
[1771151069626,0.0004,70447.0,70443.0,0.07895433]
[1771151070236,0.07137544,70447.0,70443.0,0.00797497]
[1771151070621,0.07137544,70447.0,70440.0,0.30846752]
[1771151070822,0.0004,70447.0,70442.0,0.07097945]
[1771151072459,0.0713754,70447.0,70442.0,0.07097945]
[1771151072802,0.07097667,70446.0,70441.0,0.07097945]
[1771151073226,4e-05,70450.0,70441.0,0.02453864]
[1771151073432,0.07096832,70454.0,70449.0,0.07097332]
[1771151074328,0.0713676,70455.0,70449.0,0.07097332]
[1771151074511,0.07096869,70454.0,70449.0,0.07097332]
[1771151074875,0.07097174,70451.0,70446.0,0.07097598]
[1771151075079,0.07097056,70452.0,70446.0,0.07097598]
[1771151075492,0.07097091,70453.0,70447.0,0.07097513]
[1771151075707,0.07137091,70453.0,70448.0,0.07097433]
[1771151077063,0.07137091,70453.0,70448.0,0.07097394]
[1771151077268,0.07097065,70452.0,70447.0,0.07097513]
[1771151077919,0.07097295,70450.0,70445.0,0.05143566]
[1771151078221,0.07097176,70451.0,70446.0,0.07097608]
[1771151078433,0.07097263,70450.0,70445.0,0.05143566]
[1771151079182,0.000465,70453.0,70443.0,0.07097937]
[1771151079414,0.0004,70456.0,70445.0,0.07097635]
[1771151079586,0.00012947,70458.0,70453.0,0.02453864]
[1771151079812,0.00012947,70458.0,70455.0,0.07096672]
[1771151080206,0.00012947,70458.0,70454.0,0.07096772]
[1771151080620,0.00012947,70458.0,70454.0,0.09550636]
[1771151081362,0.07109375,70458.0,70454.0,0.02453864]
[1771151081774,0.07109375,70458.0,70454.0,0.09550639]
[1771151081775,0.00012947,70458.0,70454.0,0.09550639]
[1771151082212,0.19829909,70463.0,70450.0,0.60516476]
[1771151082407,0.07096703,70457.0,70452.0,0.07097008]
[1771151082643,0.07096686,70456.0,70451.0,0.07097131]
[1771151082794,0.07096769,70455.0,70450.0,0.07114019]
[1771151082978,0.07096686,70456.0,70451.0,0.07097125]
[1771151083317,0.07096686,70456.0,70451.0,0.07097128]
[1771151083478,0.07096748,70455.0,70450.0,0.07114019]
[1771151083674,0.07096686,70456.0,70451.0,0.07097116]
[1771151083880,0.60512476,70460.0,70450.0,0.00016947]
[1771151084079,0.60512476,70460.0,70444.0,0.07097742]
[1771151084080,0.17081341,70458.0,70444.0,0.07097742]
[1771151084270,0.07097287,70450.0,70445.0,0.07097703]
[1771151084474,0.07097287,70450.0,70445.0,0.07117703]
[1771151084674,0.07097287,70450.0,70448.0,0.07]
[1771151085140,0.0943852,70451.0,70448.0,0.07]
[1771151085685,0.0943852,70451.0,70445.0,0.03819137]
[1771151085944,0.0943852,70451.0,70446.0,0.07097618]
[1771151086142,0.07097157,70451.0,70446.0,0.07097618]
[1771151086551,0.07097371,70449.0,70444.0,0.07097831]
[1771151086756,0.0384,70488.0,70440.0,4e-05]
[1771151086757,0.0709777,70445.0,70440.0,4e-05]
[1771151086963,0.17081341,70444.0,70440.0,0.07102197]
[1771151087185,0.09555512,70445.0,70440.0,4e-05]
[1771151087387,0.07097914,70444.0,70440.0,4e-05]
[1771151087877,0.07097886,70444.0,70440.0,4e-05]
[1771151088074,0.26636969,70444.0,70440.0,4e-05]
[1771151088876,0.26236969,70444.0,70440.0,4e-05]
[1771151089279,0.09155628,70444.0,70440.0,4e-05]
[1771151090627,0.17081341,70447.0,70443.0,0.07097936]
[1771151090861,0.17081341,70447.0,70440.0,4e-05]
[1771151091074,0.07097724,70446.0,70440.0,0.07102175]
[1771151091473,0.07097778,70445.0,70440.0,0.07102175]
[1771151091948,0.0955552,70445.0,70440.0,0.07102175]
[1771151093173,0.0955552,70445.0,70440.0,0.07122175]
[1771151093945,0.17081341,70444.0,70440.0,0.07122175]
[1771151094147,0.02457742,70443.0,70440.0,0.07122175]
[1771151095432,0.17081341,70444.0,70440.0,0.07122175]
[1771151095684,0.07097724,70446.0,70441.0,0.07098135]
[1771151095910,0.02457742,70445.0,70441.0,0.07098135]
[1771151096115,0.09555483,70445.0,70440.0,0.07122175]
[1771151096317,0.26636824,70445.0,70440.0,0.07122175]
[1771151096533,4e-05,70460.0,70444.0,0.02488483]
[1771151096738,4e-05,70460.0,70440.0,0.00024]
[1771151096739,0.02457742,70456.0,70448.0,0.07097351]
[1771151096941,0.02457742,70453.0,70449.0,0.07097282]
[1771151097153,0.17081341,70452.0,70449.0,0.07097282]
[1771151097335,0.17081341,70452.0,70448.0,0.07097414]
[1771151097759,0.17081341,70452.0,70445.0,6e-05]
[1771151097760,0.17081341,70452.0,70449.0,0.07097284]
[1771151097960,0.17055041,70452.0,70449.0,0.07097284]
[1771151098371,0.17055041,70452.0,70450.0,0.07097187]
[1771151098722,0.17055041,70452.0,70448.0,0.07097372]
[1771151099276,0.17081341,70450.0,70442.0,0.07098038]
[1771151099429,0.17081341,70450.0,70449.0,0.07097332]
[1771151099679,0.17081341,70450.0,70440.0,0.60536476]
[1771151099835,0.02457742,70451.0,70444.0,0.07097799]
[1771151099836,0.17081341,70448.0,70444.0,0.07097799]
[1771151100040,0.17081341,70448.0,70440.0,0.00024]
[1771151100394,0.19539083,70448.0,70444.0,0.07097833]
[1771151100793,0.02457742,70447.0,70444.0,0.07097833]
[1771151100966,0.19539083,70447.0,70444.0,0.07097833]
[1771151101447,0.19539083,70447.0,70440.0,0.07122138]
[1771151101701,0.19539083,70447.0,70444.0,0.07097825]
[1771151102346,0.17081341,70446.0,70441.0,0.0002]
[1771151102552,0.17081341,70446.0,70432.0,0.0002]
[1771151102553,0.19539083,70444.0,70436.0,0.07124602]
[1771151102778,0.17081341,70444.0,70436.0,0.00026]
[1771151102976,0.07098337,70440.0,70433.0,0.07118896]
[1771151103178,0.0955623,70438.0,70433.0,0.07118896]
[1771151103380,0.17081341,70437.0,70433.0,0.07118896]
[1771151103795,0.09556196,70438.0,70433.0,0.07118896]
[1771151104016,0.02457742,70438.0,70434.0,0.07118816]
[1771151104260,0.02457742,70444.0,70434.0,0.0002]
[1771151104471,0.02457742,70444.0,70441.0,0.07098125]
[1771151104680,0.02497742,70453.0,70435.0,0.02488483]
[1771151104879,0.02497742,70453.0,70444.0,0.07097754]
[1771151104880,0.07097287,70450.0,70444.0,0.07097754]
[1771151105232,0.07097287,70450.0,70445.0,0.07097701]
[1771151105619,0.41105093,70452.0,70446.0,0.07097557]
[1771151105824,0.41105075,70452.0,70446.0,0.07097578]
[1771151106027,0.34008,70452.0,70450.0,0.07097131]
[1771151106228,0.34008,70452.0,70444.0,0.02488483]
[1771151106430,0.07097271,70450.0,70445.0,0.07097717]
[1771151106817,0.07097416,70449.0,70443.0,0.07097937]
[1771151107287,0.34008,70452.0,70440.0,0.63000959]
[1771151107489,0.34008,70452.0,70442.0,0.07097995]
[1771151107490,0.07097593,70447.0,70442.0,0.07097995]
[1771151107692,0.0709758,70447.0,70441.0,0.07098103]
[1771151107904,0.0325525,70447.0,70440.0,0.07098063]
[1771151108112,0.20336591,70447.0,70440.0,0.07098063]
[1771151108331,0.27434162,70447.0,70441.0,0.07098091]
[1771151108701,0.02457742,70445.0,70442.0,0.07098024]
[1771151108921,0.07098011,70443.0,70434.0,0.0002]
[1771151109257,0.17081341,70443.0,70440.0,0.0002]
[1771151109380,0.24179343,70443.0,70440.0,0.0002]
[1771151110370,0.07097836,70444.0,70440.0,0.0002]
[1771151110574,0.09555578,70444.0,70440.0,0.0002]
[1771151110867,0.26636919,70444.0,70440.0,0.0002]
[1771151111926,0.19539083,70444.0,70440.0,0.07118198]
[1771151112541,0.19539083,70444.0,70440.0,0.0002]
[1771151112936,0.26636926,70444.0,70440.0,0.0002]
[1771151113457,0.19539083,70444.0,70440.0,0.0002]
[1771151114260,0.19539083,70444.0,70440.0,0.07118167]
[1771151114465,0.02457742,70444.0,70440.0,0.07118167]
[1771151114662,0.02457742,70444.0,70440.0,0.0002]
[1771151114908,0.02457742,70444.0,70440.0,0.07118218]
[1771151115099,0.0004,70447.0,70445.0,0.07097655]
[1771151115263,0.34008,70452.0,70443.0,0.02301812]
[1771151115468,0.34008,70452.0,70448.0,0.07097389]
[1771151117224,0.34008,70452.0,70449.0,0.07097326]
[1771151117395,0.34008,70452.0,70448.0,0.05147242]
[1771151118375,0.34008,70452.0,70448.0,0.03221331]
[1771151120547,0.41105066,70452.0,70447.0,0.07097359]
[1771151120798,0.0709728,70450.0,70444.0,0.07097827]
[1771151121006,0.0709728,70450.0,70445.0,0.07097709]
[1771151123303,4e-05,70450.0,70446.0,0.0709761]
[1771151123654,4e-05,70450.0,70449.0,0.07097332]
[1771151126302,0.00044,70450.0,70449.0,0.07097332]
[1771151127304,0.0004,70453.0,70452.0,0.0709703]
[1771151127626,4e-05,70460.0,70459.0,0.07096325]
[1771151127917,0.0001074,70460.0,70459.0,0.07096325]
[1771151130287,0.0001074,70460.0,70457.0,0.07096479]
[1771151130759,0.0001074,70460.0,70458.0,0.07096419]
[1771151131270,0.0001074,70460.0,70453.0,0.09398641]
[1771151131515,0.0001074,70460.0,70459.0,0.07096325]
[1771151133845,0.000165,70471.0,70460.0,0.02301812]
[1771151134093,0.000165,70471.0,70468.0,0.07095323]
[1771151134452,0.000165,70471.0,70469.0,0.07095318]
[1771151134807,0.000165,70471.0,70468.0,0.07095323]
[1771151135014,0.000165,70471.0,70469.0,0.07095318]
[1771151135210,0.000165,70471.0,70464.0,0.28383108]
[1771151135211,0.000205,70480.0,70464.0,0.02301812]
[1771151135363,0.0004,70475.0,70467.0,0.28381782]
[1771151135556,0.0004,70475.0,70474.0,0.07094815]
[1771151135757,0.0004,70475.0,70473.0,0.07094844]
[1771151136275,0.0004,70475.0,70472.0,0.07094844]
[1771151136685,0.0004,70475.0,70471.0,0.07094955]
[1771151136686,0.20748008,70484.0,70470.0,4e-05]
[1771151136884,0.07094009,70482.0,70470.0,0.00015031]
[1771151137049,0.07094599,70477.0,70471.0,0.07095085]
[1771151137450,0.18423506,70479.0,70470.0,0.00015031]
[1771151137451,0.0789217,70476.0,70470.0,0.00015031]
[1771151137834,0.18423506,70475.0,70471.0,0.07095067]
[1771151138037,0.18423506,70475.0,70470.0,0.07110182]
[1771151138038,0.25518234,70475.0,70470.0,0.00015031]
[1771151138166,0.18423506,70474.0,70470.0,0.00015031]
[1771151138388,0.18423506,70474.0,70471.0,0.07095097]
[1771151138821,0.00797508,70478.0,70473.0,0.07094875]
[1771151139025,0.00797508,70478.0,70476.0,0.07094575]
[1771151139224,0.0709406,70482.0,70473.0,0.07094915]
[1771151139444,0.0709406,70482.0,70476.0,0.07094523]
[1771151139700,0.0001252,70483.0,70474.0,0.09396526]
[1771151139880,0.0001252,70483.0,70479.0,0.07094268]
[1771151140290,0.0001252,70483.0,70474.0,0.02301812]
[1771151140509,0.02324502,70481.0,70470.0,0.07110218]
[1771151140710,0.20748008,70475.0,70471.0,0.07095109]
[1771151140913,0.07094644,70476.0,70471.0,0.07095109]
[1771151141115,0.2551815,70476.0,70471.0,0.07095109]
[1771151141257,0.18423506,70476.0,70471.0,0.07095109]
[1771151141664,0.0713465,70476.0,70470.0,0.07110091]
[1771151141915,0.0004,70476.0,70471.0,0.07095095]
[1771151142084,0.17603077,70476.0,70470.0,0.00015031]
[1771151142289,0.0004,70476.0,70470.0,0.07110208]
[1771151142489,0.07134645,70476.0,70471.0,0.07095051]
[1771151143591,0.07134645,70476.0,70470.0,0.07110202]
[1771151143822,0.0709475,70475.0,70470.0,0.00015031]
[1771151144023,0.07094877,70474.0,70470.0,0.00015031]
[1771151144420,0.0709475,70475.0,70470.0,0.07110235]
[1771151144626,0.28378863,70475.0,70470.0,0.00015031]
[1771151144795,0.00837508,70476.0,70463.0,0.41099893]
[1771151144796,0.07095451,70468.0,70463.0,0.41099893]
[1771151145046,0.07095548,70467.0,70463.0,0.34004]
[1771151145803,0.17844216,70470.0,70465.0,0.07095644]
[1771151146098,0.00837508,70476.0,70464.0,0.28383153]
[1771151146264,0.0004,70476.0,70472.0,0.07094964]
[1771151147394,0.07134615,70476.0,70471.0,0.07094964]
[1771151148555,0.07094745,70475.0,70466.0,0.0709562]
[1771151148749,0.07094834,70474.0,70469.0,0.07095268]
[1771151151068,0.07094745,70475.0,70449.0,0.000228]
[1771151151069,0.17844216,70463.0,70449.0,0.000228]
[1771151151307,0.07096568,70457.0,70451.0,0.07097067]
[1771151151530,0.02488933,70459.0,70450.0,0.0001074]
[1771151151763,0.07097062,70452.0,70450.0,0.0001074]
[1771151151997,0.0709694,70453.0,70450.0,0.0001074]
[1771151152223,0.02488933,70467.0,70454.0,0.07096757]
[1771151152452,0.070963,70460.0,70454.0,0.07096757]
[1771151152900,0.0709607,70462.0,70456.0,0.07096566]
[1771151153071,0.41095954,70463.0,70457.0,0.07096478]
[1771151153305,0.41095954,70463.0,70456.0,0.07096566]
[1771151153306,0.07096038,70462.0,70456.0,0.07096566]
[1771151153825,0.07096159,70461.0,70457.0,0.02463814]
[1771151154248,0.07096185,70461.0,70457.0,0.02463814]
[1771151154434,0.07096229,70460.0,70457.0,0.02463814]
[1771151154636,0.07096035,70462.0,70457.0,0.02463814]
[1771151154843,0.07096035,70462.0,70456.0,0.09560375]
[1771151155041,0.07096035,70462.0,70457.0,0.07096521]
[1771151155245,0.07095519,70467.0,70460.0,0.07096191]
[1771151155477,0.07095519,70467.0,70458.0,0.02463814]
[1771151155478,6.5e-05,70468.0,70459.0,0.02463814]
[1771151155690,0.07095548,70467.0,70461.0,0.07096041]
[1771151155905,0.07095969,70463.0,70460.0,0.02463814]
[1771151156319,0.07095851,70464.0,70460.0,0.02463814]
[1771151156748,0.07095851,70464.0,70459.0,0.07096276]
[1771151157143,0.07095767,70465.0,70460.0,0.07096207]
[1771151158446,0.07095718,70466.0,70461.0,0.07096115]
[1771151158699,0.07095689,70467.0,70462.0,0.07095968]
[1771151159209,0.07095574,70468.0,70462.0,0.07095968]
[1771151159411,0.07095637,70466.0,70461.0,0.07096115]
[1771151159615,0.07095318,70469.0,70462.0,0.07143903]
[1771151159784,0.07095466,70468.0,70464.0,0.02463814]
[1771151159991,4e-05,70470.0,70465.0,0.07095672]
[1771151160228,4e-05,70470.0,70466.0,0.07095588]
[1771151160429,4e-05,70470.0,70466.0,0.09559402]
[1771151160957,0.07099225,70470.0,70466.0,0.02463814]
[1771151161547,4e-05,70470.0,70466.0,0.09559431]
[1771151161752,0.0004,70476.0,70467.0,0.07095448]
[1771151161977,0.07094965,70473.0,70468.0,0.07095358]
[1771151162179,0.07095152,70471.0,70466.0,0.09559419]
[1771151162390,0.07095152,70471.0,70466.0,0.07095605]
[1771151163010,0.07095047,70472.0,70467.0,0.07095507]
[1771151163354,0.0004,70476.0,70451.0,0.02463814]
[1771151163355,0.07096145,70461.0,70451.0,0.02463814]
[1771151163578,0.62988717,70464.0,70451.0,0.02463814]
[1771151163800,0.62988717,70464.0,70458.0,0.07096378]
[1771151163801,0.07095939,70463.0,70458.0,0.07096378]
[1771151164196,0.09584801,70464.0,70459.0,0.0709632]
[1771151164358,0.07095937,70463.0,70458.0,0.07096378]
[1771151164902,0.0709629,70460.0,70455.0,0.0709669]
[1771151165187,0.02488933,70464.0,70454.0,0.0002]
[1771151165381,0.07096648,70456.0,70454.0,0.0002]
[1771151165799,0.28386734,70456.0,70450.0,6.74e-05]
[1771151166050,0.07046905,70454.0,70450.0,6.74e-05]
[1771151166245,0.07096945,70453.0,70450.0,6.74e-05]
[1771151166826,0.07096832,70454.0,70450.0,6.74e-05]
[1771151167067,0.07096877,70454.0,70450.0,6.74e-05]
[1771151167662,0.0709687,70454.0,70450.0,6.74e-05]
[1771151167848,0.02488933,70457.0,70450.0,6.74e-05]
[1771151168076,0.09585281,70459.0,70450.0,6.74e-05]
[1771151168416,0.07096438,70458.0,70453.0,0.07096879]
[1771151168633,0.07096348,70459.0,70452.0,0.07096849]
[1771151168864,0.07100251,70460.0,70453.0,0.07096879]
[1771151169085,0.07096336,70459.0,70453.0,0.07096879]
[1771151169308,4e-05,70460.0,70454.0,0.00141443]
[1771151169539,0.07096334,70459.0,70454.0,0.00141443]
[1771151169755,0.07100288,70460.0,70454.0,0.07238261]
[1771151169955,0.07100229,70460.0,70455.0,0.0709667]
[1771151170179,0.07100229,70460.0,70456.0,0.00141438]
[1771151170373,0.07096372,70459.0,70456.0,0.00141438]
[1771151170601,0.07100266,70460.0,70456.0,0.00141438]
[1771151171083,0.07096355,70459.0,70456.0,0.00141438]
[1771151171287,0.07100266,70460.0,70455.0,0.00141438]
[1771151171525,0.07100266,70460.0,70455.0,0.07238146]
[1771151171904,0.07096341,70459.0,70455.0,0.00141438]
[1771151172851,0.07100271,70460.0,70455.0,0.07238126]
[1771151173068,0.34004,70478.0,70470.0,4e-05]
[1771151173278,0.07089303,70470.0,70462.0,0.0709601]
[1771151173486,0.07089303,70470.0,70463.0,0.07095846]
[1771151173899,0.07089303,70470.0,70464.0,0.07095814]
[1771151174140,0.07095062,70472.0,70465.0,0.07095648]
[1771151174334,0.07095117,70471.0,70465.0,0.07095648]
[1771151174779,0.07095117,70471.0,70464.0,0.0709565]
[1771151174981,0.07095122,70471.0,70459.0,0.02481474]
[1771151175184,0.07095122,70471.0,70465.0,0.0709566]
[1771151175424,0.0004,70468.0,70465.0,0.0709566]
[1771151176649,0.0004,70468.0,70464.0,0.07095811]
[1771151177053,0.0004,70468.0,70463.0,0.07095917]
[1771151177255,0.0004,70468.0,70464.0,0.07095809]
[1771151177659,0.07087926,70470.0,70464.0,0.07095809]
[1771151179182,0.07087926,70470.0,70465.0,0.07095707]
[1771151179391,0.02469573,70470.0,70465.0,0.07095707]
[1771151180740,0.02469573,70470.0,70467.0,0.07095491]
[1771151181578,0.07095022,70472.0,70467.0,0.07095491]
[1771151182012,0.09564595,70472.0,70467.0,0.07095491]
[1771151182371,0.02469573,70471.0,70467.0,0.07095491]
[1771151182571,0.09564696,70471.0,70466.0,0.07095606]
[1771151182877,0.0004,70470.0,70466.0,0.07095606]
[1771151183382,0.0004,70470.0,70466.0,0.07091606]
[1771151184259,0.0004,70470.0,70463.0,0.28383614]
[1771151184489,0.0004,70470.0,70466.0,0.07095547]
[1771151185094,0.0004,70470.0,70467.0,0.07080531]
[1771151185306,0.28418916,70475.0,70474.0,0.07094815]
[1771151185307,0.0004,70475.0,70474.0,0.07094815]
[1771151185510,0.02469573,70474.0,70470.0,0.07095123]
[1771151185710,0.02469573,70474.0,70471.0,0.07095083]
[1771151185944,0.0004,70475.0,70469.0,0.07095254]
[1771151186116,0.07094853,70474.0,70468.0,0.0709534]
[1771151186324,0.07932272,70475.0,70470.0,0.0709521]
[1771151186527,0.00837508,70475.0,70471.0,0.07095117]
[1771151186747,0.00837508,70475.0,70470.0,0.0709521]
[1771151186886,0.07932237,70475.0,70470.0,0.0709521]
[1771151187493,0.03307081,70475.0,70471.0,0.07095096]
[1771151188951,0.0004,70475.0,70471.0,0.07095096]
[1771151189185,0.0004,70475.0,70472.0,0.07094927]
[1771151189684,0.0004,70475.0,70474.0,0.07094815]
[1771151194279,0.0004,70475.0,70474.0,0.07079869]
[1771151196281,0.0004,70475.0,70467.0,0.07095519]
[1771151196480,0.0004,70475.0,70471.0,0.07095025]
[1771151196705,0.0004,70475.0,70472.0,0.07094984]
[1771151196902,0.0004,70475.0,70472.0,0.07095001]
[1771151198302,0.0004,70475.0,70473.0,0.07090912]
[1771151199256,0.0004,70475.0,70473.0,0.07110452]
[1771151199417,0.0004,70475.0,70473.0,0.0001954]
[1771151200845,0.07134757,70475.0,70473.0,0.0001954]
[1771151201036,0.0004,70475.0,70473.0,0.0001954]
[1771151201265,0.07134754,70475.0,70473.0,0.0001954]
[1771151201464,0.09604327,70475.0,70473.0,0.0001954]
[1771151202317,0.07094964,70473.0,70468.0,0.07095393]
[1771151204344,0.07095088,70472.0,70467.0,0.07108275]
[1771151204728,0.07095084,70473.0,70468.0,0.07095405]
[1771151205346,0.07094975,70474.0,70469.0,0.07095315]
[1771151208850,0.0004,70475.0,70473.0,0.07094911]
[1771151209424,0.0004,70475.0,70472.0,0.07094847]
[1771151210348,0.0004,70475.0,70473.0,0.07094865]
[1771151210685,0.0004,70475.0,70474.0,0.07094815]
[1771151211462,1e-08,70475.0,70474.0,0.07094815]
[1771151211672,1e-08,70475.0,70474.0,0.09351254]
[1771151211885,1e-08,70475.0,70474.0,0.07094815]
[1771151216014,0.06598017,70482.0,70471.0,0.28380468]
[1771151216188,0.02406428,70480.0,70476.0,0.07094528]
[1771151216497,0.02406428,70480.0,70477.0,0.07094507]
[1771151216631,0.00797508,70481.0,70477.0,0.07094507]
[1771151217952,0.07408471,70482.0,70477.0,0.07094507]
[1771151218104,0.07094162,70481.0,70470.0,4e-05]
[1771151218305,0.07897254,70480.0,70475.0,0.07094633]
[1771151218504,0.00803008,70480.0,70476.0,0.07094587]
[1771151218707,5.5e-05,70480.0,70476.0,0.07094587]
[1771151218907,5.5e-05,70480.0,70477.0,0.07094507]
[1771151219143,5.5e-05,70480.0,70476.0,0.07094587]
[1771151220437,0.00012946,70482.0,70474.0,0.02256439]
[1771151220698,0.00012946,70482.0,70480.0,0.07094163]
[1771151220897,0.00012946,70482.0,70481.0,0.0709411]
[1771151221111,0.00012946,70482.0,70480.0,0.07094163]
[1771151221288,0.00012946,70482.0,70481.0,0.0709411]
[1771151222124,0.00012946,70482.0,70480.0,0.07094163]
[1771151222950,0.08994125,70485.0,70480.0,0.07094163]
[1771151223167,0.09000248,70485.0,70480.0,0.07094163]
[1771151223919,0.01906507,70485.0,70480.0,0.07094163]
[1771151225131,0.01906507,70485.0,70481.0,0.07094097]
[1771151225545,0.01906507,70485.0,70480.0,0.07094163]
[1771151225976,0.07093944,70483.0,70478.0,0.07094411]
[1771151226678,0.07891352,70484.0,70479.0,0.07094272]
[1771151226902,0.09837887,70485.0,70479.0,0.07094272]
[1771151227394,0.09837887,70485.0,70480.0,0.07094174]
[1771151227596,0.02744015,70485.0,70481.0,0.07094045]
[1771151228199,0.02744015,70485.0,70480.0,0.07094174]
[1771151228438,0.02744015,70485.0,70480.0,0.02576511]
[1771151228872,0.09837767,70485.0,70480.0,0.02576511]
[1771151229299,0.09837767,70485.0,70479.0,0.07094293]
[1771151229523,0.07093812,70484.0,70479.0,0.07094293]
[1771151229664,0.09837767,70485.0,70479.0,0.07094293]
[1771151229869,0.07093842,70484.0,70478.0,0.07094242]
[1771151230087,0.02744015,70485.0,70475.0,0.07094513]
[1771151230290,0.02744015,70485.0,70481.0,0.07094068]
[1771151230490,0.01946507,70485.0,70481.0,0.07094068]
[1771151231446,0.01946507,70485.0,70480.0,0.07094161]
[1771151231858,0.01946507,70485.0,70481.0,0.07094083]
[1771151232702,0.07054126,70487.0,70481.0,0.07094083]
[1771151232847,0.00043163,70487.0,70477.0,0.60466521]
[1771151233050,0.00043163,70487.0,70483.0,0.0709387]
[1771151233463,0.00043163,70487.0,70484.0,0.07093796]
[1771151234756,0.00043163,70487.0,70485.0,0.070937]
[1771151234961,0.00043163,70487.0,70486.0,0.07093607]
[1771151235946,0.00043163,70487.0,70485.0,0.070937]
[1771151237178,0.00043163,70487.0,70484.0,0.07093635]
[1771151237972,0.00043163,70487.0,70480.0,0.28396645]
[1771151238175,0.00043163,70487.0,70483.0,0.07093897]
[1771151238389,0.00043163,70487.0,70484.0,0.07093748]
[1771151239555,0.00043163,70487.0,70481.0,0.28376423]
[1771151239785,0.07094056,70482.0,70477.0,0.07094482]
[1771151240023,0.02442127,70481.0,70472.0,0.07114915]
[1771151240262,0.02442127,70481.0,70472.0,0.0002]
[1771151240500,0.02442127,70478.0,70474.0,0.0709481]
[1771151240716,0.02442127,70478.0,70472.0,0.0002]
[1771151240717,0.09536594,70478.0,70472.0,0.07114975]
[1771151240951,0.09536682,70477.0,70472.0,0.0002]
[1771151241152,0.02442127,70477.0,70472.0,0.07115005]
[1771151241388,0.09536686,70477.0,70472.0,0.07115005]
[1771151241624,0.60436622,70482.0,70469.0,0.0002]
[1771151241874,0.60436622,70482.0,70466.0,0.0002]
[1771151241875,0.07095034,70472.0,70466.0,0.07115612]
[1771151242127,0.02442127,70470.0,70465.0,0.0709568]
[1771151242366,0.02442127,70470.0,70464.0,0.07115743]
[1771151242367,0.07095348,70469.0,70464.0,0.0002]
[1771151242617,0.02442127,70469.0,70464.0,0.0002]
[1771151242839,0.09537791,70466.0,70464.0,0.0002]
[1771151243076,0.02442127,70466.0,70464.0,0.0002]
[1771151243328,4e-05,70470.0,70460.0,0.0001778]
[1771151243574,0.02442127,70463.0,70458.0,0.07096352]
[1771151243961,0.02442127,70463.0,70460.0,0.07096219]